[Event "*** Titled Tuesday Blitz"]
[Site "Chess.com"]
[Date "2020.04.21"]
[Round "8"]
[White "Karina_Ivanova"]
[Black "Belka1989"]
[Result "1/2-1/2"]
[WhiteElo "2235"]
[BlackElo "2337"]
[TimeControl "180+1"]
[EndTime "11:35:10 PDT"]
[Termination "Game drawn by repetition"]

1. Nf3 {[%clk 0:03:00.6]} 1... Nf6 {[%clk 0:02:59.7]} 2. c4 {[%clk 0:02:59.5]}
2... d5 {[%clk 0:02:58.1]} 3. d4 {[%clk 0:02:58.3]} 3... c6 {[%clk 0:02:56.8]}
4. Nbd2 {[%clk 0:02:55.8]} 4... Bf5 {[%clk 0:02:54.2]} 5. g3 {[%clk 0:02:54.7]}
5... e6 {[%clk 0:02:52.2]} 6. Bg2 {[%clk 0:02:54.4]} 6... Be7 {[%clk 0:02:50.6]}
7. O-O {[%clk 0:02:54]} 7... O-O {[%clk 0:02:50.4]} 8. Nh4 {[%clk 0:02:52.6]}
8... Bg6 {[%clk 0:02:48.3]} 9. Nxg6 {[%clk 0:02:51.9]} 9... hxg6 {[%clk
0:02:49.2]} 10. e4 {[%clk 0:02:49.8]} 10... dxe4 {[%clk 0:02:49.1]} 11. Nxe4
{[%clk 0:02:49.6]} 11... Nxe4 {[%clk 0:02:48.5]} 12. Bxe4 {[%clk 0:02:49]} 12...
Nd7 {[%clk 0:02:48.7]} 13. Be3 {[%clk 0:02:48.3]} 13... e5 {[%clk 0:02:44.1]}
14. dxe5 {[%clk 0:02:46.4]} 14... Nxe5 {[%clk 0:02:43.3]} 15. b3 {[%clk
0:02:45.9]} 15... Bf6 {[%clk 0:02:28]} 16. Qxd8 {[%clk 0:02:44.3]} 16... Raxd8
{[%clk 0:02:27.6]} 17. Rad1 {[%clk 0:02:45.2]} 17... Rfe8 {[%clk 0:02:00.5]} 18.
h3 {[%clk 0:02:41.8]} 18... Rxd1 {[%clk 0:01:54.7]} 19. Rxd1 {[%clk 0:02:40.8]}
19... Nxc4 {[%clk 0:01:53.9]} 20. bxc4 {[%clk 0:02:18.8]} 20... Rxe4 {[%clk
0:01:53.6]} 21. Rd7 {[%clk 0:02:13.8]} 21... Rxc4 {[%clk 0:01:50.9]} 22. Rxb7
{[%clk 0:02:13.1]} 22... a5 {[%clk 0:01:51.4]} 23. Ra7 {[%clk 0:02:11.4]} 23...
a4 {[%clk 0:01:50.3]} 24. Ra8+ {[%clk 0:02:10.7]} 24... Kh7 {[%clk 0:01:50]} 25.
Ra7 {[%clk 0:02:11]} 25... Kg8 {[%clk 0:01:23.1]} 26. Ra8+ {[%clk 0:02:10.4]}
26... Kh7 {[%clk 0:01:23.5]} 27. Ra7 {[%clk 0:02:10.3]} 27... Kg8 {[%clk
0:01:23.9]} 1/2-1/2

[Event "*** Titled Tuesday Blitz"]
[Site "Chess.com"]
[Date "2020.04.21"]
[Round "8"]
[White "Nakachuk"]
[Black "Gahan-MG"]
[Result "1-0"]
[WhiteElo "2773"]
[BlackElo "2600"]
[TimeControl "180+1"]
[EndTime "11:35:31 PDT"]
[Termination "Nakachuk won by resignation"]

1. Nf3 {[%clk 0:03:00.9]} 1... Nf6 {[%clk 0:02:57.7]} 2. g3 {[%clk 0:02:59.9]}
2... g6 {[%clk 0:02:57.3]} 3. Bg2 {[%clk 0:03:00.2]} 3... Bg7 {[%clk 0:02:57.5]}
4. O-O {[%clk 0:03:01.1]} 4... O-O {[%clk 0:02:58.4]} 5. d3 {[%clk 0:03:00.8]}
5... d5 {[%clk 0:02:59.3]} 6. Nbd2 {[%clk 0:03:00.1]} 6... d4 {[%clk 0:02:59.6]}
7. e4 {[%clk 0:03:01]} 7... dxe3 {[%clk 0:02:59.8]} 8. fxe3 {[%clk 0:03:01.8]}
8... c5 {[%clk 0:02:59.3]} 9. e4 {[%clk 0:02:56.9]} 9... Nc6 {[%clk 0:02:59]}
10. Nc4 {[%clk 0:02:53.1]} 10... Bg4 {[%clk 0:02:56.1]} 11. h3 {[%clk
0:02:52.4]} 11... Bxf3 {[%clk 0:02:56.2]} 12. Bxf3 {[%clk 0:02:53.3]} 12... Nd4
{[%clk 0:02:53.8]} 13. Bg2 {[%clk 0:02:52.6]} 13... Nh5 {[%clk 0:02:47.3]} 14.
g4 {[%clk 0:02:52.7]} 14... Nf6 {[%clk 0:02:25.6]} 15. c3 {[%clk 0:02:50.7]}
15... Nc6 {[%clk 0:02:24.8]} 16. Be3 {[%clk 0:02:48.5]} 16... b6 {[%clk
0:02:15.1]} 17. a4 {[%clk 0:02:47.6]} 17... Rc8 {[%clk 0:02:14.4]} 18. Qe2
{[%clk 0:02:47.4]} 18... Qd7 {[%clk 0:02:09.2]} 19. Rad1 {[%clk 0:02:46.4]}
19... Rfd8 {[%clk 0:02:09.1]} 20. Bf3 {[%clk 0:02:37.5]} 20... Nb8 {[%clk
0:01:57.6]} 21. g5 {[%clk 0:02:34.4]} 21... Ne8 {[%clk 0:01:55.8]} 22. Bg4
{[%clk 0:02:33.9]} 22... e6 {[%clk 0:01:52.6]} 23. Rf3 {[%clk 0:02:22.6]} 23...
Qxa4 {[%clk 0:01:46.4]} 24. Rdf1 {[%clk 0:02:22.8]} 24... Rd7 {[%clk 0:01:44.4]}
25. Qf2 {[%clk 0:02:18.5]} 25... Rcc7 {[%clk 0:01:30.4]} 26. Bxe6 {[%clk
0:02:17.8]} 26... Rxd3 {[%clk 0:01:24.4]} 27. Rxf7 {[%clk 0:02:14.7]} 1-0

[Event "*** Titled Tuesday Blitz"]
[Site "Chess.com"]
[Date "2020.04.21"]
[Round "8"]
[White "qqwow"]
[Black "lifeissofun"]
[Result "1-0"]
[WhiteElo "2466"]
[BlackElo "2275"]
[TimeControl "180+1"]
[EndTime "11:35:34 PDT"]
[Termination "qqwow won by resignation"]

1. d4 {[%clk 0:02:57.9]} 1... Nf6 {[%clk 0:02:59.2]} 2. c4 {[%clk 0:02:56.8]}
2... e6 {[%clk 0:02:59.7]} 3. Nc3 {[%clk 0:02:55.8]} 3... Bb4 {[%clk 0:03:00.3]}
4. a3 {[%clk 0:02:56.3]} 4... Bxc3+ {[%clk 0:02:59.8]} 5. bxc3 {[%clk
0:02:57.2]} 5... O-O {[%clk 0:02:59.9]} 6. f3 {[%clk 0:02:57.7]} 6... d5 {[%clk
0:03:00.8]} 7. e3 {[%clk 0:02:55.9]} 7... b6 {[%clk 0:03:01.2]} 8. Bd3 {[%clk
0:02:55.9]} 8... Ba6 {[%clk 0:03:00.8]} 9. e4 {[%clk 0:02:43.9]} 9... c5 {[%clk
0:02:57.7]} 10. cxd5 {[%clk 0:02:43.1]} 10... Bxd3 {[%clk 0:02:56.5]} 11. Qxd3
{[%clk 0:02:44]} 11... exd5 {[%clk 0:02:57.1]} 12. e5 {[%clk 0:02:43.7]} 12...
Nfd7 {[%clk 0:02:55.8]} 13. Ne2 {[%clk 0:02:43.8]} 13... Nc6 {[%clk 0:02:54.3]}
14. O-O {[%clk 0:02:43.3]} 14... Re8 {[%clk 0:02:53.3]} 15. f4 {[%clk
0:02:43.3]} 15... Rc8 {[%clk 0:02:52.9]} 16. f5 {[%clk 0:02:42.6]} 16... f6
{[%clk 0:02:41.4]} 17. e6 {[%clk 0:02:36.2]} 17... Ndb8 {[%clk 0:02:40.4]} 18.
Nf4 {[%clk 0:02:35]} 18... c4 {[%clk 0:02:35]} 19. Qf3 {[%clk 0:02:30.6]} 19...
Ne7 {[%clk 0:02:34.9]} 20. Qg4 {[%clk 0:02:27.2]} 20... Qc7 {[%clk 0:02:29.7]}
21. Nh5 {[%clk 0:02:26.3]} 21... Nxf5 {[%clk 0:02:00.6]} 22. Qxf5 {[%clk
0:02:17.8]} 22... Nc6 {[%clk 0:01:58.8]} 23. Qg4 {[%clk 0:02:13.5]} 23... Kh8
{[%clk 0:01:56.8]} 24. Bf4 {[%clk 0:02:08.9]} 24... Qb7 {[%clk 0:01:55.4]} 25.
Rae1 {[%clk 0:02:06.1]} 25... Rg8 {[%clk 0:01:53.1]} 26. a4 {[%clk 0:01:51.7]}
26... Ne7 {[%clk 0:01:53.2]} 27. Bd6 {[%clk 0:01:37]} 27... Ng6 {[%clk
0:01:41.3]} 28. Nf4 {[%clk 0:01:32.3]} 28... Rce8 {[%clk 0:01:42.2]} 29. Nxg6+
{[%clk 0:01:31.6]} 1-0

[Event "*** Titled Tuesday Blitz"]
[Site "Chess.com"]
[Date "2020.04.21"]
[Round "8"]
[White "CMS13"]
[Black "HashtagChess"]
[Result "1-0"]
[WhiteElo "2127"]
[BlackElo "1659"]
[TimeControl "180+1"]
[EndTime "11:35:41 PDT"]
[Termination "CMS13 won by resignation"]

1. e4 {[%clk 0:03:00.9]} 1... c5 {[%clk 0:02:54.2]} 2. Nc3 {[%clk 0:03:00.5]}
2... g6 {[%clk 0:02:48.4]} 3. Nf3 {[%clk 0:02:57.8]} 3... Bg7 {[%clk 0:02:46.5]}
4. d4 {[%clk 0:02:57.8]} 4... cxd4 {[%clk 0:02:45.5]} 5. Nxd4 {[%clk 0:02:58.7]}
5... d6 {[%clk 0:02:45.2]} 6. Be3 {[%clk 0:02:58.8]} 6... a6 {[%clk 0:02:42.8]}
7. Bc4 {[%clk 0:02:58.9]} 7... Qc7 {[%clk 0:02:40.8]} 8. Bb3 {[%clk 0:02:57.1]}
8... Nc6 {[%clk 0:02:40.5]} 9. Nd5 {[%clk 0:02:55]} 9... Qd8 {[%clk 0:02:34.5]}
10. Nxc6 {[%clk 0:02:55.2]} 10... bxc6 {[%clk 0:02:34.7]} 11. Bb6 {[%clk
0:02:55.1]} 11... Qd7 {[%clk 0:02:27.2]} 12. Nc7+ {[%clk 0:02:54.9]} 12... Kf8
{[%clk 0:02:26.6]} 13. Nxa8 {[%clk 0:02:54.1]} 13... Bxb2 {[%clk 0:02:23.2]} 14.
Rb1 {[%clk 0:02:52.9]} 14... Bc3+ {[%clk 0:02:23]} 15. Kf1 {[%clk 0:02:52.4]}
15... Qb7 {[%clk 0:02:12.5]} 16. Qf3 {[%clk 0:02:45.6]} 16... Bf6 {[%clk
0:02:11.6]} 17. Bd4 {[%clk 0:02:18]} 17... Qxa8 {[%clk 0:02:08.4]} 18. Bxf6
{[%clk 0:02:17.6]} 18... Nxf6 {[%clk 0:02:09.3]} 19. h3 {[%clk 0:02:12]} 19...
a5 {[%clk 0:02:07.5]} 20. a4 {[%clk 0:02:09.3]} 20... Ba6+ {[%clk 0:02:04.6]}
21. Kg1 {[%clk 0:02:09.6]} 21... Kg7 {[%clk 0:02:02.5]} 22. h4 {[%clk
0:02:05.1]} 22... c5 {[%clk 0:02:01.6]} 23. Bd5 {[%clk 0:01:54.3]} 23... Nxd5
{[%clk 0:01:51.8]} 24. exd5 {[%clk 0:01:54.1]} 24... Bc4 {[%clk 0:01:47.8]} 25.
Qc3+ {[%clk 0:01:52.6]} 25... f6 {[%clk 0:01:41]} 26. Qxc4 {[%clk 0:01:52.9]}
26... Rb8 {[%clk 0:01:41.9]} 27. Rxb8 {[%clk 0:01:51.7]} 27... Qxb8 {[%clk
0:01:42.8]} 28. Qb5 {[%clk 0:01:50.5]} 28... Qd8 {[%clk 0:01:36.2]} 29. Kh2
{[%clk 0:01:49.2]} 29... e6 {[%clk 0:01:32.5]} 30. dxe6 {[%clk 0:01:47.3]} 1-0

[Event "*** Titled Tuesday Blitz"]
[Site "Chess.com"]
[Date "2020.04.21"]
[Round "8"]
[White "MateSchmate"]
[Black "kenta1234"]
[Result "0-1"]
[WhiteElo "2456"]
[BlackElo "2604"]
[TimeControl "180+1"]
[EndTime "11:35:42 PDT"]
[Termination "kenta1234 won by resignation"]

1. e4 {[%clk 0:03:00.9]} 1... c5 {[%clk 0:02:59]} 2. Nf3 {[%clk 0:03:01.3]} 2...
Nc6 {[%clk 0:02:59.3]} 3. d4 {[%clk 0:03:01.9]} 3... cxd4 {[%clk 0:02:59.7]} 4.
Nxd4 {[%clk 0:03:02.8]} 4... e6 {[%clk 0:03:00.3]} 5. Nc3 {[%clk 0:03:03.2]}
5... Qc7 {[%clk 0:03:00.8]} 6. g3 {[%clk 0:03:03.4]} 6... a6 {[%clk 0:03:00.5]}
7. Bg2 {[%clk 0:03:03.4]} 7... Nf6 {[%clk 0:03:01.1]} 8. O-O {[%clk 0:03:02.3]}
8... h5 {[%clk 0:03:01.6]} 9. h3 {[%clk 0:02:57.2]} 9... h4 {[%clk 0:03:01.3]}
10. g4 {[%clk 0:02:55.8]} 10... Nxd4 {[%clk 0:02:58.5]} 11. Qxd4 {[%clk
0:02:55.4]} 11... Bc5 {[%clk 0:02:59.4]} 12. Qd3 {[%clk 0:02:50.9]} 12... d6
{[%clk 0:02:59.2]} 13. Be3 {[%clk 0:02:47.3]} 13... Bxe3 {[%clk 0:02:58.2]} 14.
Qxe3 {[%clk 0:02:47.3]} 14... Nd7 {[%clk 0:02:58.4]} 15. f4 {[%clk 0:02:45.9]}
15... Qc5 {[%clk 0:02:57.7]} 16. Qxc5 {[%clk 0:02:45.5]} 16... Nxc5 {[%clk
0:02:58]} 17. Rad1 {[%clk 0:02:43.8]} 17... Ke7 {[%clk 0:02:58.2]} 18. b4 {[%clk
0:02:38.8]} 18... Nd7 {[%clk 0:02:58.3]} 19. a4 {[%clk 0:02:36.2]} 19... a5
{[%clk 0:02:56.8]} 20. Rd4 {[%clk 0:02:15.8]} 20... axb4 {[%clk 0:02:55.7]} 21.
Rxb4 {[%clk 0:02:16.7]} 21... Nc5 {[%clk 0:02:53.9]} 22. Rd1 {[%clk 0:02:09.8]}
22... Rd8 {[%clk 0:02:50.1]} 23. Rbd4 {[%clk 0:02:04.4]} 23... b6 {[%clk
0:02:44.3]} 24. Rb4 {[%clk 0:01:55.9]} 24... Bd7 {[%clk 0:02:39.9]} 25. Ra1
{[%clk 0:01:38.6]} 25... b5 {[%clk 0:02:34.8]} 26. a5 {[%clk 0:01:29.8]} 26...
Na6 {[%clk 0:02:33.8]} 27. Rd4 {[%clk 0:01:27.3]} 27... Rdc8 {[%clk 0:02:32.1]}
28. Rd3 {[%clk 0:01:16.6]} 28... b4 {[%clk 0:02:30.5]} 29. Ne2 {[%clk
0:01:06.8]} 29... Rxc2 {[%clk 0:02:21.4]} 30. Nd4 {[%clk 0:01:06.8]} 30... Rc3
{[%clk 0:02:22]} 31. Rxc3 {[%clk 0:01:03]} 31... bxc3 {[%clk 0:02:22.1]} 32. Rc1
{[%clk 0:01:03.9]} 32... Rc8 {[%clk 0:02:21.6]} 33. Bf1 {[%clk 0:01:03.5]} 33...
Nb4 {[%clk 0:02:21.7]} 34. Kf2 {[%clk 0:00:57.3]} 34... e5 {[%clk 0:02:20.3]}
35. f5 {[%clk 0:00:52.2]} 35... exd4 {[%clk 0:02:19.7]} 0-1

[Event "*** Titled Tuesday Blitz"]
[Site "Chess.com"]
[Date "2020.04.21"]
[Round "8"]
[White "Alliswell998"]
[Black "almaguerjm"]
[Result "1-0"]
[WhiteElo "2570"]
[BlackElo "2353"]
[TimeControl "180+1"]
[EndTime "11:35:59 PDT"]
[Termination "Alliswell998 won by resignation"]

1. e4 {[%clk 0:03:00.9]} 1... e5 {[%clk 0:02:55.5]} 2. Nf3 {[%clk 0:03:00.6]}
2... Nc6 {[%clk 0:02:54.3]} 3. Nc3 {[%clk 0:03:01.1]} 3... Bc5 {[%clk
0:02:53.2]} 4. Nxe5 {[%clk 0:03:00.3]} 4... Nxe5 {[%clk 0:02:51.6]} 5. d4 {[%clk
0:03:00.1]} 5... Bd6 {[%clk 0:02:52.2]} 6. dxe5 {[%clk 0:03:00]} 6... Bxe5
{[%clk 0:02:53.1]} 7. f4 {[%clk 0:03:00.6]} 7... Bxc3+ {[%clk 0:02:53.1]} 8.
bxc3 {[%clk 0:03:01.3]} 8... d6 {[%clk 0:02:53.2]} 9. Bd3 {[%clk 0:03:01.3]}
9... Nf6 {[%clk 0:02:53.4]} 10. O-O {[%clk 0:03:00.5]} 10... O-O {[%clk
0:02:52.7]} 11. Qe1 {[%clk 0:03:00.3]} 11... Re8 {[%clk 0:02:45.3]} 12. Qh4
{[%clk 0:02:58.2]} 12... Bd7 {[%clk 0:02:41.5]} 13. e5 {[%clk 0:02:38.7]} 13...
dxe5 {[%clk 0:02:40.7]} 14. fxe5 {[%clk 0:02:39.6]} 14... Rxe5 {[%clk
0:02:40.7]} 15. Bg5 {[%clk 0:02:19.2]} 15... Qe7 {[%clk 0:01:56.5]} 16. Bxf6
{[%clk 0:02:15.3]} 16... Qc5+ {[%clk 0:01:55.5]} 17. Kh1 {[%clk 0:02:10.3]}
17... gxf6 {[%clk 0:01:55.6]} 18. Qxh7+ {[%clk 0:02:06.8]} 18... Kf8 {[%clk
0:01:53.9]} 19. Qh8+ {[%clk 0:02:07]} 19... Ke7 {[%clk 0:01:54.3]} 20. Qxa8
{[%clk 0:02:05.3]} 20... Bc6 {[%clk 0:01:52.9]} 21. Rae1 {[%clk 0:01:58.9]}
21... Qd5 {[%clk 0:01:44.7]} 22. Rxe5+ {[%clk 0:01:57.4]} 22... fxe5 {[%clk
0:01:45.6]} 23. Qg8 {[%clk 0:01:54.6]} 23... e4 {[%clk 0:01:33.5]} 24. Be2
{[%clk 0:01:43.7]} 24... Qxa2 {[%clk 0:01:30.2]} 25. Bh5 {[%clk 0:01:41.3]}
25... Bd5 {[%clk 0:01:28.6]} 26. Qg5+ {[%clk 0:01:40.2]} 26... Kd6 {[%clk
0:01:26]} 27. Qf4+ {[%clk 0:01:35.5]} 27... Kc6 {[%clk 0:01:19.9]} 28. Bxf7
{[%clk 0:01:35.4]} 28... Bxf7 {[%clk 0:01:13.9]} 29. Qxf7 {[%clk 0:01:34.7]} 1-0

[Event "*** Titled Tuesday Blitz"]
[Site "Chess.com"]
[Date "2020.04.21"]
[Round "8"]
[White "northridgehawk"]
[Black "NiranjanNavalgund"]
[Result "0-1"]
[WhiteElo "2225"]
[BlackElo "2455"]
[TimeControl "180+1"]
[EndTime "11:36:09 PDT"]
[Termination "NiranjanNavalgund won by resignation"]

1. e4 {[%clk 0:03:00.6]} 1... e5 {[%clk 0:02:58.9]} 2. Bc4 {[%clk 0:02:58.2]}
2... Nf6 {[%clk 0:02:56]} 3. Nc3 {[%clk 0:02:58]} 3... Nxe4 {[%clk 0:02:55]} 4.
Qh5 {[%clk 0:02:57.7]} 4... Nd6 {[%clk 0:02:54.1]} 5. Bb3 {[%clk 0:02:43.6]}
5... Nc6 {[%clk 0:02:43.2]} 6. Nb5 {[%clk 0:02:30.7]} 6... g6 {[%clk 0:02:24.2]}
7. Qf3 {[%clk 0:02:30.1]} 7... f5 {[%clk 0:02:19.2]} 8. Qd5 {[%clk 0:02:25.6]}
8... Qe7 {[%clk 0:02:03.5]} 9. Nxc7+ {[%clk 0:02:21.6]} 9... Kd8 {[%clk
0:02:03.8]} 10. Nxa8 {[%clk 0:02:22.2]} 10... b6 {[%clk 0:02:02.6]} 11. d3
{[%clk 0:02:17.3]} 11... Bb7 {[%clk 0:02:00.8]} 12. Nxb6 {[%clk 0:02:15.4]}
12... axb6 {[%clk 0:02:01.7]} 13. h4 {[%clk 0:02:16.3]} 13... Kc7 {[%clk
0:01:57.8]} 14. Bg5 {[%clk 0:02:14.4]} 14... Qe8 {[%clk 0:01:57.7]} 15. Qf3
{[%clk 0:02:05.8]} 15... Nd4 {[%clk 0:01:56.9]} 16. Qg3 {[%clk 0:02:03.8]} 16...
f4 {[%clk 0:01:56.2]} 17. Qh2 {[%clk 0:02:03]} 17... Bg7 {[%clk 0:01:52.7]} 18.
O-O-O {[%clk 0:02:01.1]} 18... h6 {[%clk 0:01:52.4]} 19. Bxf4 {[%clk 0:01:57.8]}
19... exf4 {[%clk 0:01:52.6]} 20. Qxf4 {[%clk 0:01:58.6]} 20... Be5 {[%clk
0:01:53.5]} 21. Qd2 {[%clk 0:01:56.7]} 21... Rf8 {[%clk 0:01:51.8]} 22. f3
{[%clk 0:01:56.7]} 22... Bf4 {[%clk 0:01:51.3]} 23. Nh3 {[%clk 0:01:56.3]} 23...
Bxd2+ {[%clk 0:01:46.6]} 24. Rxd2 {[%clk 0:01:57.2]} 24... Nxb3+ {[%clk
0:01:43.9]} 25. axb3 {[%clk 0:01:58.1]} 25... Qa8 {[%clk 0:01:43.3]} 26. Kb1
{[%clk 0:01:58.1]} 26... Qa5 {[%clk 0:01:42.6]} 27. c3 {[%clk 0:01:57.9]} 27...
Ra8 {[%clk 0:01:42.2]} 28. Kc2 {[%clk 0:01:55.7]} 28... Bd5 {[%clk 0:01:41.7]}
29. c4 {[%clk 0:01:53.5]} 29... Nf5 {[%clk 0:01:40]} 30. d4 {[%clk 0:01:49.3]}
30... Bf7 {[%clk 0:01:34.8]} 31. Re1 {[%clk 0:01:48.1]} 31... Qb4 {[%clk
0:01:33.1]} 32. Nf4 {[%clk 0:01:44.8]} 32... Nxd4+ {[%clk 0:01:32.6]} 33. Kd3
{[%clk 0:01:40.7]} 33... Nxb3 {[%clk 0:01:28.7]} 34. Rc2 {[%clk 0:01:39.7]}
34... Qxe1 {[%clk 0:01:27]} 0-1

[Event "*** Titled Tuesday Blitz"]
[Site "Chess.com"]
[Date "2020.04.21"]
[Round "8"]
[White "Gareth-Bale11"]
[Black "731291"]
[Result "0-1"]
[WhiteElo "2742"]
[BlackElo "2611"]
[TimeControl "180+1"]
[EndTime "11:36:14 PDT"]
[Termination "731291 won by resignation"]

1. e4 {[%clk 0:03:00.9]} 1... c5 {[%clk 0:02:59.3]} 2. Nf3 {[%clk 0:03:00.3]}
2... e6 {[%clk 0:02:59.2]} 3. g3 {[%clk 0:02:54.9]} 3... Nc6 {[%clk 0:02:57.8]}
4. Bg2 {[%clk 0:02:53.7]} 4... d6 {[%clk 0:02:57.9]} 5. O-O {[%clk 0:02:53.2]}
5... Nf6 {[%clk 0:02:57.1]} 6. d4 {[%clk 0:02:53.6]} 6... cxd4 {[%clk
0:02:56.9]} 7. Nxd4 {[%clk 0:02:53.1]} 7... Bd7 {[%clk 0:02:49.1]} 8. Nc3 {[%clk
0:02:52.3]} 8... a6 {[%clk 0:02:48.4]} 9. f4 {[%clk 0:02:45.4]} 9... Be7 {[%clk
0:02:46.2]} 10. f5 {[%clk 0:02:00.3]} 10... O-O {[%clk 0:02:37.3]} 11. h3 {[%clk
0:01:51.5]} 11... Qc7 {[%clk 0:02:31.5]} 12. g4 {[%clk 0:01:46.6]} 12... Nxd4
{[%clk 0:02:28.7]} 13. Qxd4 {[%clk 0:01:46.1]} 13... d5 {[%clk 0:02:28.6]} 14.
Kh1 {[%clk 0:00:33.8]} 14... Bc5 {[%clk 0:02:18.7]} 15. Qd1 {[%clk 0:00:25]}
15... Nxe4 {[%clk 0:02:12.4]} 16. Nxe4 {[%clk 0:00:23.6]} 16... dxe4 {[%clk
0:02:12.4]} 17. f6 {[%clk 0:00:24.5]} 17... Bb5 {[%clk 0:01:59.1]} 18. Re1
{[%clk 0:00:16]} 18... Rfd8 {[%clk 0:01:55.5]} 19. Bd2 {[%clk 0:00:16]} 19... e3
{[%clk 0:01:54.3]} 0-1

[Event "*** Titled Tuesday Blitz"]
[Site "Chess.com"]
[Date "2020.04.21"]
[Round "8"]
[White "boasovietica"]
[Black "ChelsieMonica"]
[Result "0-1"]
[WhiteElo "2437"]
[BlackElo "2329"]
[TimeControl "180+1"]
[EndTime "11:36:22 PDT"]
[Termination "ChelsieMonica won by resignation"]

1. e4 {[%clk 0:03:00.9]} 1... e5 {[%clk 0:02:59.8]} 2. Nf3 {[%clk 0:03:00.2]}
2... Nc6 {[%clk 0:02:55.5]} 3. Bb5 {[%clk 0:03:00.2]} 3... a6 {[%clk 0:02:54.6]}
4. Ba4 {[%clk 0:02:59.3]} 4... Nf6 {[%clk 0:02:54]} 5. O-O {[%clk 0:02:59.4]}
5... b5 {[%clk 0:02:54]} 6. Bb3 {[%clk 0:02:59]} 6... Be7 {[%clk 0:02:54.5]} 7.
d3 {[%clk 0:02:57.3]} 7... O-O {[%clk 0:02:53.5]} 8. Nc3 {[%clk 0:02:46.7]} 8...
d6 {[%clk 0:02:52.4]} 9. a3 {[%clk 0:02:42.2]} 9... Bg4 {[%clk 0:02:50.7]} 10.
Be3 {[%clk 0:02:42.3]} 10... Nd4 {[%clk 0:02:48.1]} 11. Bxd4 {[%clk 0:02:40.9]}
11... exd4 {[%clk 0:02:47.6]} 12. Nd5 {[%clk 0:02:40.8]} 12... c6 {[%clk
0:02:32.1]} 13. Nxe7+ {[%clk 0:02:23.9]} 13... Qxe7 {[%clk 0:02:30.3]} 14. h3
{[%clk 0:02:23.8]} 14... Bh5 {[%clk 0:02:21.2]} 15. g4 {[%clk 0:01:47.4]} 15...
Nxg4 {[%clk 0:02:18.6]} 16. hxg4 {[%clk 0:01:48.3]} 16... Bxg4 {[%clk
0:02:18.7]} 17. Kg2 {[%clk 0:01:48.9]} 17... Kh8 {[%clk 0:02:10.4]} 18. Rh1
{[%clk 0:01:20.5]} 18... f5 {[%clk 0:02:07.9]} 19. Qd2 {[%clk 0:00:44.7]} 19...
Bxf3+ {[%clk 0:02:03.3]} 20. Kxf3 {[%clk 0:00:43.7]} 20... fxe4+ {[%clk
0:02:03.4]} 21. Kg2 {[%clk 0:00:34.5]} 21... e3 {[%clk 0:01:58.5]} 22. Rxh7+
{[%clk 0:00:23.6]} 22... Kxh7 {[%clk 0:01:55.3]} 23. Rh1+ {[%clk 0:00:24.5]}
23... Kg6 {[%clk 0:01:54.4]} 24. fxe3 {[%clk 0:00:23.6]} 24... Qg5+ {[%clk
0:01:53.5]} 0-1

[Event "*** Titled Tuesday Blitz"]
[Site "Chess.com"]
[Date "2020.04.21"]
[Round "8"]
[White "Teidi96"]
[Black "korkmaz16"]
[Result "0-1"]
[WhiteElo "2175"]
[BlackElo "2290"]
[TimeControl "180+1"]
[EndTime "11:36:31 PDT"]
[Termination "korkmaz16 won by resignation"]

1. e4 {[%clk 0:03:00.9]} 1... d5 {[%clk 0:02:56.9]} 2. exd5 {[%clk 0:03:00.5]}
2... Nf6 {[%clk 0:02:56.2]} 3. c4 {[%clk 0:02:59.8]} 3... e6 {[%clk 0:02:55.2]}
4. d4 {[%clk 0:03:00.2]} 4... exd5 {[%clk 0:02:52.8]} 5. Nc3 {[%clk 0:03:00.8]}
5... Bb4 {[%clk 0:02:52.6]} 6. Nf3 {[%clk 0:03:01.1]} 6... O-O {[%clk
0:02:52.1]} 7. Be2 {[%clk 0:03:01.2]} 7... Bg4 {[%clk 0:02:51.7]} 8. O-O {[%clk
0:03:00.6]} 8... dxc4 {[%clk 0:02:51.9]} 9. Bxc4 {[%clk 0:02:56.5]} 9... Nc6
{[%clk 0:02:49.6]} 10. Be3 {[%clk 0:02:55.1]} 10... Bxc3 {[%clk 0:02:44]} 11.
bxc3 {[%clk 0:02:54.7]} 11... Nd5 {[%clk 0:02:44.6]} 12. Bd2 {[%clk 0:02:36.8]}
12... Re8 {[%clk 0:02:43.2]} 13. Rb1 {[%clk 0:02:25.5]} 13... Qd6 {[%clk
0:02:34.7]} 14. Bxd5 {[%clk 0:01:45.3]} 14... Qxd5 {[%clk 0:02:33.2]} 15. Rxb7
{[%clk 0:01:45.6]} 15... Nxd4 {[%clk 0:02:30.3]} 16. Rxc7 {[%clk 0:01:28]} 16...
Nxf3+ {[%clk 0:02:26.9]} 17. gxf3 {[%clk 0:01:26.6]} 17... Bxf3 {[%clk
0:02:26.9]} 18. Qb3 {[%clk 0:01:14.7]} 18... Qh5 {[%clk 0:02:18.5]} 19. Bf4
{[%clk 0:01:08.6]} 19... Rac8 {[%clk 0:02:01.3]} 20. Rxc8 {[%clk 0:00:18.5]}
20... Rxc8 {[%clk 0:01:58.4]} 21. Qb7 {[%clk 0:00:04.7]} 21... Bxb7 {[%clk
0:01:56.4]} 0-1

[Event "*** Titled Tuesday Blitz"]
[Site "Chess.com"]
[Date "2020.04.21"]
[Round "8"]
[White "IMAghasiyevKamal"]
[Black "GMJustin"]
[Result "0-1"]
[WhiteElo "2505"]
[BlackElo "2378"]
[TimeControl "180+1"]
[EndTime "11:36:32 PDT"]
[Termination "GMJustin won by checkmate"]

1. e4 {[%clk 0:02:55.1]} 1... c5 {[%clk 0:02:58.4]} 2. Nf3 {[%clk 0:02:47.5]}
2... e6 {[%clk 0:02:50.9]} 3. b3 {[%clk 0:02:46.9]} 3... Nc6 {[%clk 0:02:45.7]}
4. Bb2 {[%clk 0:02:42.3]} 4... a6 {[%clk 0:02:45.4]} 5. g3 {[%clk 0:02:29.3]}
5... Nf6 {[%clk 0:02:28.8]} 6. d3 {[%clk 0:02:28.2]} 6... d5 {[%clk 0:02:25.4]}
7. Nbd2 {[%clk 0:02:27.7]} 7... d4 {[%clk 0:02:15.6]} 8. Bg2 {[%clk 0:02:24.3]}
8... e5 {[%clk 0:02:09.1]} 9. O-O {[%clk 0:02:20.8]} 9... Bd6 {[%clk 0:02:02.6]}
10. a4 {[%clk 0:02:15.1]} 10... O-O {[%clk 0:01:53.1]} 11. h3 {[%clk 0:02:12.4]}
11... Rb8 {[%clk 0:01:45]} 12. Nh4 {[%clk 0:02:04.6]} 12... g6 {[%clk
0:01:34.6]} 13. f4 {[%clk 0:01:55.2]} 13... exf4 {[%clk 0:01:26.6]} 14. gxf4
{[%clk 0:01:55.1]} 14... Nh5 {[%clk 0:01:26.4]} 15. Nf5 {[%clk 0:01:39.1]} 15...
Bxf4 {[%clk 0:01:23.4]} 16. Nc4 {[%clk 0:01:20.8]} 16... b5 {[%clk 0:01:14]} 17.
axb5 {[%clk 0:01:16.9]} 17... axb5 {[%clk 0:01:13.7]} 18. Nd2 {[%clk 0:01:13.5]}
18... Bxf5 {[%clk 0:01:10.9]} 19. exf5 {[%clk 0:01:12.4]} 19... Be3+ {[%clk
0:01:10.8]} 20. Kh1 {[%clk 0:01:12.2]} 20... Ng3+ {[%clk 0:01:09.3]} 21. Kh2
{[%clk 0:01:12.5]} 21... Qc7 {[%clk 0:01:02.2]} 22. Rf3 {[%clk 0:01:12.1]} 22...
Nf1+ {[%clk 0:00:52.9]} 23. Kh1 {[%clk 0:01:11]} 23... Qh2# {[%clk 0:00:51.8]}
0-1